Cogmind - Beta 9.1 @@@ ROGUE MODE // 2019.11.02 @ 19:15:02 // Halloween2019/Abominations Player: Trione Result: Destroyed by Minor Abomination with Etherial Claws Performance ------------- Evolutions (0) 0 Regions Visited (1) 200 Robots Destroyed (4) 20 Value Destroyed (167) 167 Prototype IDs (0) 0 Alien Tech Used (0) 0 Bonus (0) 0 TOTAL SCORE: 387 Bonus ------- None Cogmind --------- Core Integrity 0/250 Matter 300/300 Energy 100/100 System Corruption 0% Temperature Cool (0) Location -10/Materials Parts ------- Power (1) Propulsion (2) Utility (2) Small Storage Unit Small Storage Unit Weapon (2) Inventory (8) Ion Engine Aluminum Leg Compact Wheel Compact Wheel Peak State ------------ Power Light Ion Engine Propulsion Wheel Compact Wheel Utility Small Storage Unit Small Storage Unit Weapon Assault Rifle Light Assault Rifle Inventory Ion Engine Light Treads Light Treads Aluminum Leg Aluminum Leg Compact Wheel Light Assault Rifle [Rating: 7] Favorites ----------- Power Light Ion Engine Engine Light Ion Engine Propulsion Compact Wheel Treads Light Treads Wheel Compact Wheel Utility Small Storage Unit Storage Small Storage Unit Weapon Light Assault Rifle Energy Gun EM Pulse Gun Ballistic Gun Light Assault Rifle Special Weapon Mining Laser Build | -11 -10 ------- Run | Scr Mat Slots Evolved . | . . Power . | . . Propulsion . | . . Utility . | . . Weapon . | . . Parts Attached 12 | 7 5 Power 1 | 1 . Engine 1 | 1 . Core . | . . Reactor . | . . Propulsion 4 | 2 2 Treads 2 | . 2 Leg . | . . Wheel 2 | 2 . Hover . | . . Flight . | . . Utility 2 | 2 . Device . | . . Storage 2 | 2 . Processor . | . . Hackware . | . . Protection . | . . Artifact . | . . Weapon 5 | 2 3 Energy Gun 1 | . 1 Energy Cannon . | . . Ballistic Gun 3 | 2 1 Ballistic Cannon . | . . Launcher . | . . Special Weapon 1 | . 1 Impact Weapon . | . . Slashing Weapon . | . . Piercing Weapon . | . . Special Melee Weapon . | . . Unidentified Prototypes . | . . Parts Lost 9 | . 9 Power 1 | . 1 Propulsion 3 | . 3 Utility . | . . Weapon 5 | . 5 Highest Loss Streak 5 | . 5 Average Slot Usage (%) 94 | . 94 Engine 14 | . 14 Treads 7 | . 7 Wheel 18 | . 18 Storage 28 | . 28 Energy Gun 2 | . 2 Ballistic Gun 20 | . 20 Special Weapon 1 | . 1 Naked Turns . | . . Heaviest Build 14 | 14 14 Greatest Support 40 | 26 40 Greatest Overweight (x) . | . . Average Overweight (x) . | . . Largest Inventory Capacity 8 | 8 8 Average Capacity 7 | 6 8 Most Carried 8 | 8 8 Average Carried 6 | 4 6 Final Capacity 8 | 8 8 Final Carried 7 | 7 4 Class Distribution -------------------- 100% | Mutant Dominant Class ---------------- Mutant | -10/Materials Resources | -11 -10 ----------- Run | Scr Mat Matter Collected 363 | 276 87 Remotely . | . . Salvage Created 242 | 75 167 Parts 9 | 4 5 Haulers Intercepted . | . . Recyclers Shooed . | . . Parts Field Recycled . | . . Retrieved Matter . | . . Parts Self-Destructed . | . . Prevented . | . . Kills | -11 -10 ------- Run | Scr Mat Combat Hostiles Destroyed 3 | . 3 Guns 2 | . 2 Cannons 1 | . 1 Classes Destroyed 3 | 1 2 Recycler 1 | 1 . Grunt 2 | . 2 Abomination 1 | . 1 Best Kill Streak 2 | 1 2 Combat Bots Only 2 | . 2 Max Kills in Single Turn 1 | 1 1 Gunslinging . | . . Exploded . | . . Melee . | . . Uniques/NPCs Destroyed . | . . Combat | -11 -10 -------- Run | Scr Mat Damage Taken 1100 | . 1100 Core 283 | . 283 Absorbed by Shields . | . . Core Remaining (%) 100 | 100 . Volleys Fired 35 | 6 29 Largest 2 | 1 2 Hottest 120 | 20 120 Shots Fired 60 | 6 54 Gun 59 | 6 53 Cannon . | . . Launcher . | . . Special 1 | . 1 Kinetic 50 | 6 44 Thermal 1 | . 1 Explosive . | . . Electromagnetic 9 | . 9 Robot Hit Streak 24 | 3 24 Robot Miss Streak 3 | 1 3 Penetration Max . | . . Secondary Targets . | . . Shots Hit Robots 49 | 5 44 Core Hits 18 | 2 16 Critical Hits . | . . Critical Kills . | . . Critical Parts Destroyed . | . . Melee Attacks . | . . Impact . | . . Slashing . | . . Piercing . | . . Sneak Attacks . | . . Combat Hostiles . | . . Follow-up Attacks . | . . Damage Inflicted 506 | 40 466 Guns 462 | 40 422 Cannons . | . . Explosions . | . . Melee . | . . Ramming 14 | . 14 Kinetic 352 | 40 312 Thermal 30 | . 30 Explosive . | . . Electromagnetic 110 | . 110 Impact . | . . Slashing . | . . Piercing . | . . Highest Corruption . | . . Average Corruption . | . . Corruption Purged . | . . Overload Shots . | . . Overflow Damage . | . . Projectiles . | . . Explosions . | . . Melee . | . . Knockbacks . | . . Impact . | . . Kinetic . | . . Secondary . | . . Self-Inflicted Damage . | . . Shots . | . . Rammed 10 | . 10 Targets Rammed 10 | . 10 Kicked . | . . Crushed . | . . Highest Temperature 120 | . 120 Average Temperature 63 | . 63 Received Heat Transfer 90 | . 90 Siege Activations . | . . Robots Corrupted . | . . Combat Hostiles . | . . Parts Fried 1 | . 1 Impact Corruptions . | . . Robots Melted . | . . Combat Hostiles . | . . Parts Melted . | . . Heat Transferred 12 | . 12 Parts Sabotaged . | . . Parts Stolen . | . . Parts Stripped . | . . Power Chain Reactions . | . . Missiles Intercepted . | . . Alert | -11 -10 ------- Run | Scr Mat Peak Influence 55 | 5 55 Average Influence 10 | 2 13 Maximum Alert Level . | . . Low Security (%) 100 | . . Level 1 . | . . Level 2 . | . . Level 3 . | . . Level 4 . | . . Level 5 . | . . High Security . | . . Max Security . | . . Squads Dispatched 1 | . 1 Investigation . | . . Extermination . | . . Reinforcement 1 | . 1 Assault . | . . Garrison . | . . Intercept . | . . Construction Impeded . | . . Haulers Reinforced . | . . Stealth | -11 -10 --------- Run | Scr Mat Distress Signals . | . . Communications Jammed . | . . Distress Signals . | . . Times Spotted 7 | . 7 Peak Tracking Total 4 | . 4 Tactical Retreats 2 | . 2 Traps | -11 -10 ------- Run | Scr Mat Traps Triggered . | . . Indirectly . | . . Trap Hack Attempts . | . . Triggered . | . . Disarmed . | . . Reprogrammed . | . . Reused . | . . Traps Extracted . | . . Installed . | . . Triggered . | . . Machines | -11 -10 ---------- Run | Scr Mat Machines Disabled . | . . Max in Single Turn . | . . Machines Sabotaged . | . . Garrisons Compromised . | . . Overloaded Fab Kills . | . . Fab Network Shutdowns . | . . Hacking | -11 -10 --------- Run | Scr Mat Machines Accessed 1 | . 1 Terminals 1 | . 1 Fabricators . | . . Repair Stations . | . . Recycling Units . | . . Scanalyzers . | . . Garrison Access . | . . Total Hacks 2 | . 2 Successful 1 | . 1 Failed 1 | . 1 Catastrophic . | . . Database Lockouts . | . . Manual 2 | . 2 Terminals 2 | . 2 Fabricators . | . . Repair Stations . | . . Recycling Units . | . . Scanalyzers . | . . Garrison Access . | . . Terminal Hacks . | . . Fabricator Hacks . | . . Repair Station Hacks . | . . Recycling Unit Hacks . | . . Scanalyzer . | . . Garrison Access Hacks . | . . Unauthorized Hacks 3 | . 3 Terminals 1 | . 1 Track 1 | . 1 Fabricators . | . . Repair Stations . | . . Recycling Units . | . . Scanalyzers . | . . Garrison Access . | . . Data Cores Recovered . | . . Used . | . . Hacking Detections 1 | . 1 Full Trace Events . | . . Feedback Events . | . . Feedback Blocked . | . . Robot Schematics Acquired . | . . Robots Built . | . . Matter . | . . Time . | . . Total Robot Build Rating . | . . Part Schematics Acquired . | . . Parts Built . | . . Matter . | . . Time . | . . Total Part Build Rating . | . . Parts Repaired . | . . Time . | . . Parts Recycled . | . . Recycled Matter . | . . Retrieved Matter . | . . Retrieved Components . | . . Parts Scanalyzed . | . . Part Schematics Acquired . | . . Parts Damaged . | . . Bothacking | -11 -10 ------------ Run | Scr Mat Used RIF Installer . | . . Robots Hacked . | . . Non-combat . | . . Combat . | . . Robot Hacks Applied . | . . Relay Couplers Released . | . . Robots Rewired . | . . Allies Hacked . | . . Hacks Repelled . | . . Allies | -11 -10 -------- Run | Scr Mat Total Allies . | . . Largest Group . | . . Highest-Rated Group . | . . Highest-Rated Ally . | . . Total Orders . | . . Ally Attacks . | . . Total Damage . | . . Kills . | . . Allies Corrupted . | . . Allies Melted . | . . Intel | -11 -10 ------- Run | Scr Mat Robot Analysis Total . | . . Derelict Logs Recovered . | . . Drone Launches . | . . Drone Recoveries . | . . Exploration | -11 -10 ------------- Run | Scr Mat Turns Passed 325 | 95 230 Spaces Moved 205 | 76 129 Core 5 | 5 . Treads 14 | . 14 Legs . | . . Wheels 186 | 71 115 Hover . | . . Flight . | . . Fastest Speed 50 | 50 90 Average Speed 94 | 87 98 Slowest Speed 160 | 90 160 Overloaded Moves . | . . Propulsion Burnouts . | . . Robots Hopped . | . . Cave-ins Triggered . | . . Exploration Rate (%) 15 | 4 27 Regions Visited 1 Branch Regions . Pre-discovered Areas . | . . Known Exits Taken . | . . Unknown Exits Taken 1 | 1 . Scrap Searched . | . . Spaces Dug . | . . Terrain Destroyed . | . . Melee . | . . Projectile . | . . AOE . | . . Actions | -11 -10 --------- Run | Scr Mat Total 272 | 96 176 Wait . | . . Move 204 | 75 129 Hop . | . . Pick Up 10 | 8 2 Fast Attach 6 | 6 . Attach 5 | 1 4 Detach . | . . Swap 1 | . 1 Drop 1 | . 1 Fire 35 | 6 29 Melee . | . . Ram 2 | . 2 Kick . | . . Crush 8 | . 8 Escape Stasis . | . . Rewire . | . . Trap . | . . Miscellaneous . | . . Route ------- -11/Scrapyard -10/Materials History --------- Turn | Location | Event 22 | -11/Scrapyard | Discovered new exit (range 16) 96 | -11/Scrapyard | Entered Materials 96 | -10/Materials | Discovered new exit (range 7) 241 | -10/Materials | Core integrity fell below 50% 263 | -10/Materials | Discovered new exit (range 8) 270 | -10/Materials | Lost 3 parts (1n2w) 300 | -10/Materials | Build established: Mutant 311 | -10/Materials | Core integrity fell below 20% 326 | -10/Materials | Destroyed by Minor Abomination with Etherial Claws Last Messages --------------- 00297_ Lgt. Nuclear Core springs to life within a quantum being. 00298_ Minor Abomination absorbs Aluminum Leg. 00299_ Minor Abomination absorbs Hover Unit. 00302_ G-34 Mercenary misfires. 00302_ G-34 Mercenary destroyed. 00303_ Minor Abomination absorbs Heat Sink. 00309_ Lgt. Assault Rifle destroyed. 00310_ Slammed into Minor Abomination. 00312_ EM Pulse Gun destroyed. 00312_ Slammed into Minor Abomination. 00317_ Lgt. Treads destroyed. 00318_ Slammed into Minor Abomination. 00321_ ALERT: Hostiles spotted, dispatching reinforcements to Terminal M004. 00321_ Slammed into Minor Abomination. 00322_ Lgt. Ion Engine destroyed. 00322_ Lgt. Treads destroyed. 00323_ Slammed into Minor Abomination. 00325_ Minor Abomination absorbs Aluminum Leg. 00325_ Slammed into Minor Abomination. Map ----- +----------------------------------------------------+ | ?????????????????????????????????????????????????? | | ?????????????????????????????????????????????????? | | ?????????????????????????????????????????????????? | | ?????????????????????????????????????????????????? | | ?????????????????????????????????????????????????? | | ?????????????????????????????????????????????????? | | ?????????????????????????????????????????????????? | | ?????????????????????????????????????????????????? | | ?????????????????????????????????????????????????? | | ?????????????????????????????????????????????????? | | ?????????????????????????????????????????????????? | | ????????????????????????????? ?????????????????? | | ????????????????????????????? #????????????????? | | ????????????????????????????? +????????????????? | | ????????????????????????????? #????????????????? | | ???????##############??????## ####?????????????? | | ??????? #??????# """#?????????????? | | ??? ? """ """ """ #??????? "#?????????????? | | ??# # """ """ """ #??????? |"#?????????????? | | ??# + """ """ """ #??????? %< ""#?????????????? | | ??# # #??????? % |"#?????????????? | | ??# # !#??????? "#?????????????? | | ??# #########+#####??????? """??????????????? | | ??# ???????## ############# #????????????????? | | ??# #??????# A% % #????????????????? | | ??# #??????# @%%% %#????????????????? | | ??+ #??????# a % % %#????????????????? | | ??# #??????# ############ ##???????????????? | | ??# #??????# #?????????#% %#???????????????? | | ?## ##?????# #?####????# % #??????????? | | ?# ####### #? ????# T k / "???????? | | ?# #? """??# =| ^^# "???????? | | ?# ## """#?# %= #### #?? ??????? | | ?# ## """#?###+###????#??????????? | | ## ####### ## #???????????????????????? | | ########?????# ## """#???????????????????????? | | #????????????# ## """#???????????????????????? | | #######?????## ##! """#???????????????????????? | | # ####### # #???????????????????????? | | # k # """#???????????????????????? | | + < g + """#???????????????????????? | | # = # """#???????????????????????? | | # ####### # #???????????????????????? | | ## ##########/##########???????????????????????? | | ## # # #????????????????????????????? | | ## # # """" #????????????????????????????? | | ## + """ # """" #????????????????????????????? | | ## # """ # """" #????????????????????????????? | | ?# # """ # #????????????????????????????? | | ?# # # """" #????????????????????????????? | +----------------------------------------------------+ Best States ------------- Heat Dissipation 25 Energy Generation 10 Energy Capacity 125 Matter Stores 300 Matter Capacity 300 Sight Range 16 Terrain Scan Density 10 Evasion (%) 44 Recoil Reduction 2 Item Schematics ----------------- None Robot Schematics ------------------ None Fabricated ------------ Nothing Alien Tech Used ----------------- None Achievements -------------- None Challenges ------------ None Game ------ Seed EtherialMeleeAutogun Manual? 0 Play Time 00:05:30 Cumulative 806.5 hours Start 2019.11.02 @ 19:02:15 End 2019.11.02 @ 19:15:02 Sessions 1 Manual Loads 0 Difficulty Rogue Special Mode Halloween2019/Abominations Game No. 301 Rogue 301 Adventurer 0 Explorer 0 Win Type - Total 20 Types 10/1/7/0/0/0/2 Lore% 95 Gallery% 94 Achievement% 79 Wizard Run 0 Options --------- ASCII 0 Keyboard 0 Movement Vi Keybinds 0 Fullscreen 0 Font 12/Crisp Map View 76x50 Tactical HUD 1 Map Filters NONE Filters NONE Steam X RUN: 82446398-6e96-43a3-b53e-de8668fe2457